[Event "French-ch U16-U18 2024"]
[Site "Agen"]
[Date "2024.04.17"]
[Round "5.2"]
[White "Famel, Diane"]
[Black "Bat, Anu"]
[Result "0-1"]
[ECO "D35"]
[WhiteElo "1888"]
[BlackElo "1887"]
[Annotator "NA RC COMBH"]
[PlyCount "136"]
[EventDate "2024.04.14"]
[EventType "swiss"]
[EventCountry "FRA"]
[SourceTitle "playchess.com"]
[Source "ChessBase"]
[SourceQuality "1"]
[TimeControl "5400+30"]

1. d4 {[%emt 0:00:03]} d5 {[%emt 0:00:04]} 2. c4 {[%emt 0:00:07]} e6 {[%emt 0:00:08]} 3. Nc3 {[%emt 0:00:06]} Nf6 {[%emt 0:00:09]} 4. cxd5 {[%emt 0:00:03]} exd5 {[%emt 0:00:07]} 5. Bg5 {[%emt 0:00:11]} c6 {[%emt 0:00:09]} 6. e3 {[%emt 0:00:10]} Bd6 {[%emt 0:00:08]} 7. Bd3 {[%emt 0:00:10]} O-O {[%emt 0:00:10]} 8. Nge2 {[%emt 0:00:06]} Re8 {[%emt 0:00:17]} 9. Qc2 {[%emt 0:00:11]} h6 {[%emt 0:00:06]} 10. Bh4 {[%emt 0:00:10]} a5 {[%emt 0:00:26]} 11. O-O {[%emt 0:01:57]} Bxh2+ {[%emt 0:00:22]} 12. Kh1 {[%emt 0:03:58]} Bd6 {[%emt 0:02:57]} 13. Rad1 {[%emt 0:18:10]} Na6 {[%emt 0:03:49]} 14. a3 {[%emt 0:01:57]} Nc7 {[%emt 0:05:14]} 15. e4 {[%emt 0:08:46]} dxe4 {[%emt 0:11:59]} 16. Nxe4 {[%emt 0:03:05]} Be7 {[%emt 0:01:44]} 17. Bg3 {[%emt 0:05:16]} Ncd5 {[%emt 0:09:41]} 18. Nc5 {[%emt 0:13:28]} Bd6 {[%emt 0:04:29]} 19. Kg1 {[%emt 0:12:50]} Bxg3 {[%emt 0:22:11]} 20. Nxg3 {[%emt 0:00:29]} Qc7 {[%emt 0:01:04]} 21. Rde1 {[%emt 0:08:45]} Ne3 {[%emt 0:02:44]} 22. Rxe3 {[%emt 0:03:53]} Rxe3 {[%emt 0:00:08]} 23. fxe3 {[%emt 0:00:02]} Qxg3 {[%emt 0:00:19]} 24. Qf2 {[%emt 0:02:40]} Qxf2+ {[%emt 0:00:44]} 25. Rxf2 {[%emt 0:00:03]} b6 {[%emt 0:00:56]} 26. Ne4 {[%emt 0:01:10]} Nd5 {[%emt 0:00:42]} 27. Nd6 {[%emt 0:02:59]} Be6 {[%emt 0:01:21]} 28. e4 {[%emt 0:00:27]} Nf6 {[%emt 0:00:31]} 29. Rc2 {[%emt 0:03:10]} Bd7 {[%emt 0:04:14]} 30. Bc4 {[%emt 0:00:15]} Kf8 {[%emt 0:00:57]} 31. e5 {[%emt 0:02:14]} Ng4 {[%emt 0:13:29]} 32. Bxf7 {[%emt 0:00:47]} Ke7 {[%emt 0:00:20]} 33. Ba2 {[%emt 0:01:00]} c5 {[%emt 0:02:05]} 34. dxc5 {[%emt 0:01:14]} bxc5 {[%emt 0:00:12]} 35. Rxc5 {[%emt 0:00:42]} Nxe5 {[%emt 0:00:27]} 36. Rxe5+ {[%emt 0:00:05]} Kxd6 {[%emt 0:00:05]} 37. Rd5+ {[%emt 0:00:43]} Ke7 {[%emt 0:00:07]} 38. Re5+ {[%emt 0:00:06]} Kf6 {[%emt 0:00:13]} 39. Re4 {[%emt 0:00:45]} Rb8 {[%emt 0:00:25]} 40. b4 {[%emt 0:01:33]} axb4 {[%emt 0:00:43]} 41. axb4 {[%emt 0:00:13]} Bf5 {[%emt 0:00:48]} 42. Rc4 {[%emt 0:00:44]} Ra8 {[%emt 0:00:48]} 43. Rc6+ {[%emt 0:00:54]} Ke7 {[%emt 0:00:51]} 44. Bc4 {[%emt 0:00:22]} Bd7 {[%emt 0:01:01]} 45. Rg6 {[%emt 0:00:27]} Kf8 {[%emt 0:00:55]} 46. b5 {[%emt 0:00:44]} Rb8 {[%emt 0:01:14]} 47. b6 {[%emt 0:00:02]} Bf5 {[%emt 0:00:24]} 48. Rc6 {[%emt 0:00:51]} Bd7 {[%emt 0:01:13]} 49. Rc7 {[%emt 0:00:21]} Ke8 {[%emt 0:00:31]} 50. Be6 {[%emt 0:05:27]} Bxe6 {[%emt 0:00:39]} 51. Rxg7 {[%emt 0:00:02]} Bf7 {[%emt 0:00:27]} 52. Rh7 {[%emt 0:00:25]} Rxb6 {[%emt 0:00:11]} 53. Rh8+ {[%emt 0:00:19]} Ke7 {[%emt 0:00:11]} 54. Ra8 {[%emt 0:00:12]} Kf6 {[%emt 0:01:35]} 55. Ra3 {[%emt 0:01:00]} Rb5 {[%emt 0:01:51]} 56. Kh2 {[%emt 0:01:33]} Be6 {[%emt 0:00:19]} 57. Rf3+ {[%emt 0:00:07]} Kg6 {[%emt 0:00:41]} 58. Rg3+ {[%emt 0:00:04]} Rg5 {[%emt 0:00:14]} 59. Ra3 {[%emt 0:00:14]} Bd5 {[%emt 0:00:27]} 60. Ra6+ {[%emt 0:00:04]} Kh5 {[%emt 0:01:56]} 61. Rd6 {[%emt 0:01:12]} Rxg2+ {[%emt 0:00:16]} 62. Kh3 {[%emt 0:00:12]} Rg5 {[%emt 0:00:32]} 63. Rf6 {[%emt 0:00:57]} Be4 {[%emt 0:00:30]} 64. Rb6 {[%emt 0:01:20]} Rf5 {[%emt 0:00:28]} 65. Rb4 {[%emt 0:00:10]} Re5 {[%emt 0:01:25]} 66. Kg3 {[%emt 0:00:44]} Kg5 {[%emt 0:00:09]} 67. Rb8 {[%emt 0:00:01]} Rc5 {[%emt 0:00:14]} 68. Rg8+ {[%emt 0:00:04]} Bg6 {[%emt 0:00:08]} 0-1

[Event "French-ch U16-U18 2024"]
[Site "Agen"]
[Date "2024.04.17"]
[Round "5.3"]
[White "Fesigny, Oceane"]
[Black "Roy, Suvrojita"]
[Result "1-0"]
[ECO "B84"]
[WhiteElo "1829"]
[BlackElo "1665"]
[Annotator "NA RC COMBH"]
[PlyCount "105"]
[EventDate "2024.04.14"]
[EventType "swiss"]
[EventCountry "FRA"]
[SourceTitle "playchess.com"]
[Source "ChessBase"]
[SourceQuality "1"]
[TimeControl "5400+30"]

1. e4 {[%emt 0:00:05]} c5 {[%emt 0:00:18]} 2. Nf3 {[%emt 0:00:19]} d6 {[%emt 0:00:21]} 3. d4 {[%emt 0:00:19]} cxd4 {[%emt 0:00:23]} 4. Nxd4 {[%emt 0:00:16]} Nf6 {[%emt 0:00:26]} 5. Nc3 {[%emt 0:00:45]} e6 {[%emt 0:00:36]} 6. Be2 {[%emt 0:01:31]} a6 {[%emt 0:01:11]} 7. O-O {[%emt 0:05:22]} Be7 {[%emt 0:02:18]} 8. f4 {[%emt 0:07:43]} Nbd7 {[%emt 0:05:27]} 9. Bf3 {[%emt 0:10:19]} Qc7 {[%emt 0:06:25]} 10. Kh1 {[%emt 0:07:59]} Rb8 {[%emt 0:06:58]} 11. a4 {[%emt 0:02:54]} b6 {[%emt 0:05:39]} 12. Qe1 {[%emt 0:06:10]} O-O {[%emt 0:06:29]} 13. Qg3 {[%emt 0:12:03]} Re8 {[%emt 0:10:39]} 14. h4 {[%emt 0:14:10]} Qc5 {[%emt 0:19:47]} 15. Be3 {[%emt 0:28:05]} Nh5 {[%emt 0:09:52]} 16. Qh2 {[%emt 0:00:00]} Nhf6 {[%emt 0:05:45]} 17. Nf5 {[%emt 0:00:00]} Qb4 {[%emt 0:02:26]} 18. Nxe7+ {[%emt 0:00:00]} Rxe7 {[%emt 0:00:03]} 19. Rab1 {[%emt 0:00:00]} Nc5 {[%emt 0:04:26]} 20. e5 {[%emt 0:00:39]} dxe5 {[%emt 0:01:06]} 21. fxe5 {[%emt 0:00:17]} Ng4 {[%emt 0:01:16]} 22. Bxg4 {[%emt 0:00:56]} Qxg4 {[%emt 0:00:02]} 23. Rf4 {[%emt 0:00:19]} Qg6 {[%emt 0:01:00]} 24. h5 {[%emt 0:01:22]} Qxc2 {[%emt 0:02:09]} 25. Qg3 {[%emt 0:00:22]} Bb7 {[%emt 0:03:47]} 26. Rf2 {[%emt 0:00:45]} Ne4 {[%emt 0:01:52]} 27. Qxg7+ {[%emt 0:00:43]} Kxg7 {[%emt 0:00:02]} 28. Rxc2 {[%emt 0:01:07]} Ng3+ {[%emt 0:00:35]} 29. Kh2 {[%emt 0:00:00]} Nxh5 {[%emt 0:00:48]} 30. g4 {[%emt 0:00:00]} Rc8 {[%emt 0:01:13]} 31. Rd2 {[%emt 0:00:35]} Rc4 {[%emt 0:01:08]} 32. gxh5 {[%emt 0:00:14]} Rh4+ {[%emt 0:00:02]} 33. Kg3 {[%emt 0:00:17]} Rxh5 {[%emt 0:00:14]} 34. Bxb6 {[%emt 0:00:56]} Rg5+ {[%emt 0:00:35]} 35. Kh4 {[%emt 0:00:41]} Rg6 {[%emt 0:00:54]} 36. Rg1 {[%emt 0:00:16]} Re8 {[%emt 0:01:40]} 37. Rxg6+ {[%emt 0:00:13]} hxg6 {[%emt 0:00:03]} 38. Rd8 {[%emt 0:00:39]} Rxd8 {[%emt 0:00:12]} 39. Bxd8 {[%emt 0:00:01]} Bd5 {[%emt 0:01:53]} 40. Kg5 {[%emt 0:00:36]} Bc4 {[%emt 0:00:30]} 41. b4 {[%emt 0:00:57]} Bd3 {[%emt 0:00:00]} 42. b5 {[%emt 0:00:25]} axb5 {[%emt 0:00:00]} 43. axb5 {[%emt 0:00:14]} Bf1 {[%emt 0:00:12]} 44. b6 {[%emt 0:00:17]} Bg2 {[%emt 0:00:05]} 45. Na4 {[%emt 0:00:18]} Bd5 {[%emt 0:00:25]} 46. Nc5 {[%emt 0:00:13]} Kf8 {[%emt 0:00:12]} 47. b7 {[%emt 0:01:09]} Bxb7 {[%emt 0:00:07]} 48. Nxb7 {[%emt 0:00:04]} Kg7 {[%emt 0:02:23]} 49. Nd6 {[%emt 0:00:31]} Kf8 {[%emt 0:00:22]} 50. Kf6 {[%emt 0:00:38]} g5 {[%emt 0:00:33]} 51. Nxf7 {[%emt 0:00:51]} g4 {[%emt 0:00:17]} 52. Bb6 {[%emt 0:00:14]} Ke8 {[%emt 0:00:11]} 53. Kxe6 {[%emt 0:00:17]} 1-0

[Event "French-ch U16-U18 2024"]
[Site "Agen"]
[Date "2024.04.17"]
[Round "5.4"]
[White "Lavilledieu, Lily-Mei"]
[Black "Caullychurn, Ambre"]
[Result "1-0"]
[ECO "D94"]
[WhiteElo "1783"]
[BlackElo "1702"]
[Annotator "NA RC COMBH"]
[PlyCount "108"]
[EventDate "2024.04.14"]
[EventType "swiss"]
[EventCountry "FRA"]
[SourceTitle "playchess.com"]
[Source "ChessBase"]
[SourceQuality "1"]
[TimeControl "5400+30"]

1. d4 {[%emt 0:00:03]} d5 {[%emt 0:00:16]} 2. c4 {[%emt 0:00:07]} c6 {[%emt 0:00:17]} 3. Nc3 {[%emt 0:00:07]} Nf6 {[%emt 0:01:05]} 4. Nf3 {[%emt 0:00:12]} g6 {[%emt 0:01:02]} 5. e3 {[%emt 0:00:37]} Bg7 {[%emt 0:00:30]} 6. Bd3 {[%emt 0:02:49]} dxc4 {[%emt 0:04:02]} 7. Bxc4 {[%emt 0:01:10]} b5 {[%emt 0:00:18]} 8. Bd3 {[%emt 0:00:11]} Bb7 {[%emt 0:01:09]} 9. O-O {[%emt 0:00:55]} O-O {[%emt 0:00:37]} 10. e4 {[%emt 0:02:49]} a6 {[%emt 0:03:04]} 11. Qe2 {[%emt 0:01:37]} Nbd7 {[%emt 0:02:07]} 12. e5 {[%emt 0:01:53]} Nd5 {[%emt 0:01:33]} 13. Nxd5 {[%emt 0:02:10]} cxd5 {[%emt 0:00:08]} 14. Ng5 {[%emt 0:08:32]} e6 {[%emt 0:02:18]} 15. f4 {[%emt 0:06:55]} Qe7 {[%emt 0:13:42]} 16. Qg4 {[%emt 0:07:09]} h6 {[%emt 0:06:07]} 17. Nf3 {[%emt 0:03:15]} Qe8 {[%emt 0:21:02]} 18. Nh4 {[%emt 0:11:21]} Kh7 {[%emt 0:01:28]} 19. f5 {[%emt 0:16:34]} exf5 {[%emt 0:00:21]} 20. Nxf5 {[%emt 0:01:54]} Qe6 {[%emt 0:09:26]} 21. Bxh6 {[%emt 0:07:35]} Bxh6 {[%emt 0:13:03]} 22. Qh4 {[%emt 0:01:59]} Kg8 {[%emt 0:00:18]} 23. Nxh6+ {[%emt 0:00:40]} Kg7 {[%emt 0:00:09]} 24. Rf3 {[%emt 0:03:59]} Rh8 {[%emt 0:02:55]} 25. Raf1 {[%emt 0:05:19]} Raf8 {[%emt 0:02:39]} 26. Bf5 {[%emt 0:05:33]} Qb6 {[%emt 0:05:38]} 27. Bxd7 {[%emt 0:01:39]} Rxh6 {[%emt 0:00:19]} 28. Qf6+ {[%emt 0:00:15]} Qxf6 {[%emt 0:00:15]} 29. Rxf6 {[%emt 0:00:08]} Rhh8 {[%emt 0:02:32]} 30. Rc1 {[%emt 0:01:30]} Bc8 {[%emt 0:04:48]} 31. Rc7 {[%emt 0:00:31]} Rd8 {[%emt 0:02:16]} 32. Bxc8 {[%emt 0:00:40]} Rxc8 {[%emt 0:00:04]} 33. Rfxf7+ {[%emt 0:03:01]} Kh6 {[%emt 0:00:05]} 34. Rxc8 {[%emt 0:00:38]} Rxc8 {[%emt 0:00:07]} 35. Rd7 {[%emt 0:00:12]} Rc2 {[%emt 0:00:39]} 36. Rxd5 {[%emt 0:01:37]} Rxb2 {[%emt 0:00:11]} 37. e6 {[%emt 0:01:21]} Re2 {[%emt 0:01:23]} 38. Re5 {[%emt 0:01:16]} Rxe5 {[%emt 0:00:05]} 39. dxe5 {[%emt 0:00:12]} Kg7 {[%emt 0:00:08]} 40. Kf2 {[%emt 0:00:26]} Kf8 {[%emt 0:00:06]} 41. Ke3 {[%emt 0:00:23]} Ke7 {[%emt 0:00:10]} 42. Kd4 {[%emt 0:01:23]} Kxe6 {[%emt 0:01:23]} 43. h4 {[%emt 0:00:20]} a5 {[%emt 0:00:23]} 44. Kc5 {[%emt 0:00:39]} b4 {[%emt 0:00:40]} 45. Kb5 {[%emt 0:00:11]} Kxe5 {[%emt 0:00:06]} 46. Kxa5 {[%emt 0:00:16]} Kf4 {[%emt 0:00:25]} 47. Kxb4 {[%emt 0:00:11]} Kg4 {[%emt 0:00:05]} 48. a4 {[%emt 0:00:11]} Kxh4 {[%emt 0:00:10]} 49. a5 {[%emt 0:00:06]} g5 {[%emt 0:00:10]} 50. a6 {[%emt 0:00:19]} Kg3 {[%emt 0:00:37]} 51. a7 {[%emt 0:00:11]} Kxg2 {[%emt 0:00:04]} 52. a8=Q+ {[%emt 0:00:07]} Kh3 {[%emt 0:00:08]} 53. Qh1+ {[%emt 0:00:10]} Kg3 {[%emt 0:00:17]} 54. Qg1+ {[%emt 0:00:18]} Kf3 {[%emt 0:01:01]} 1-0

[Event "French-ch U16-U18 2024"]
[Site "Agen"]
[Date "2024.04.17"]
[Round "5.5"]
[White "Akbarova, Ania"]
[Black "Darrort, Nahia"]
[Result "0-1"]
[ECO "E00"]
[WhiteElo "1685"]
[BlackElo "1752"]
[Annotator "NA RC COMBH"]
[PlyCount "136"]
[EventDate "2024.04.14"]
[EventType "swiss"]
[EventCountry "FRA"]
[SourceTitle "playchess.com"]
[Source "ChessBase"]
[SourceQuality "1"]
[TimeControl "5400+30"]

1. d4 {[%emt 0:00:06]} Nf6 {[%emt 0:00:06]} 2. c4 {[%emt 0:00:13]} e6 {[%emt 0:00:11]} 3. g3 {[%emt 0:00:27]} Bb4+ {[%emt 0:01:29]} 4. Bd2 {[%emt 0:00:33]} Bxd2+ {[%emt 0:00:32]} 5. Nxd2 {[%emt 0:00:43]} O-O {[%emt 0:01:20]} 6. e4 {[%emt 0:03:39]} d6 {[%emt 0:01:24]} 7. Ngf3 {[%emt 0:05:08]} b6 {[%emt 0:01:38]} 8. Bg2 {[%emt 0:02:55]} Bb7 {[%emt 0:01:16]} 9. Qc2 {[%emt 0:02:06]} Nbd7 {[%emt 0:02:00]} 10. O-O {[%emt 0:01:19]} c5 {[%emt 0:02:44]} 11. d5 {[%emt 0:06:08]} exd5 {[%emt 0:11:17]} 12. exd5 {[%emt 0:00:27]} Ng4 {[%emt 0:05:13]} 13. Rfe1 {[%emt 0:04:24]} Nde5 {[%emt 0:05:46]} 14. Re2 {[%emt 0:02:40]} Re8 {[%emt 0:04:55]} 15. Rae1 {[%emt 0:00:41]} Nxf3+ {[%emt 0:01:55]} 16. Nxf3 {[%emt 0:02:25]} Rxe2 {[%emt 0:02:40]} 17. Qxe2 {[%emt 0:01:00]} Kf8 {[%emt 0:09:16]} 18. Qc2 {[%emt 0:18:46]} Nf6 {[%emt 0:02:00]} 19. Re2 {[%emt 0:02:32]} Qd7 {[%emt 0:03:08]} 20. Ng5 {[%emt 0:06:30]} Kg8 {[%emt 0:02:53]} 21. Bh3 {[%emt 0:04:19]} Qc7 {[%emt 0:03:04]} 22. Ne4 {[%emt 0:05:02]} Nd7 {[%emt 0:13:46]} 23. Bf5 {[%emt 0:07:34]} Nf8 {[%emt 0:04:54]} 24. Ng5 {[%emt 0:07:22]} h6 {[%emt 0:02:33]} 25. Nf3 {[%emt 0:02:11]} Bc8 {[%emt 0:01:41]} 26. Nh4 {[%emt 0:00:57]} g6 {[%emt 0:04:31]} 27. Bd3 {[%emt 0:01:06]} Bg4 {[%emt 0:01:07]} 28. f3 {[%emt 0:01:06]} Bd7 {[%emt 0:00:57]} 29. Re7 {[%emt 0:02:34]} Re8 {[%emt 0:04:37]} 30. Qe2 {[%emt 0:00:34]} Qd8 {[%emt 0:00:53]} 31. Rxe8 {[%emt 0:00:41]} Bxe8 {[%emt 0:00:03]} 32. Qe3 {[%emt 0:01:27]} Kg7 {[%emt 0:00:40]} 33. f4 {[%emt 0:00:45]} Nh7 {[%emt 0:02:11]} 34. f5 {[%emt 0:01:08]} g5 {[%emt 0:00:29]} 35. Ng2 {[%emt 0:00:36]} Bd7 {[%emt 0:00:34]} 36. Qe2 {[%emt 0:02:12]} Qf6 {[%emt 0:00:34]} 37. Ne3 {[%emt 0:00:29]} Qd4 {[%emt 0:00:28]} 38. Kf2 {[%emt 0:00:45]} Nf6 {[%emt 0:00:53]} 39. g4 {[%emt 0:01:15]} Qe5 {[%emt 0:01:32]} 40. Ke1 {[%emt 0:01:58]} Qd4 {[%emt 0:00:36]} 41. h3 {[%emt 0:01:04]} a6 {[%emt 0:00:52]} 42. b3 {[%emt 0:01:35]} Qc3+ {[%emt 0:00:35]} 43. Qd2 {[%emt 0:00:27]} Qd4 {[%emt 0:00:36]} 44. Bf1 {[%emt 0:00:59]} Qa1+ {[%emt 0:00:21]} 45. Ke2 {[%emt 0:00:29]} Qe5 {[%emt 0:00:24]} 46. Bg2 {[%emt 0:00:29]} Ne4 {[%emt 0:00:56]} 47. Bxe4 {[%emt 0:00:29]} Qxe4 {[%emt 0:00:03]} 48. Kf2 {[%emt 0:00:25]} Qf4+ {[%emt 0:00:17]} 49. Kg2 {[%emt 0:00:16]} Qe4+ {[%emt 0:00:12]} 50. Kg1 {[%emt 0:00:23]} Qe5 {[%emt 0:00:51]} 51. Qf2 {[%emt 0:00:15]} Qa1+ {[%emt 0:00:30]} 52. Kg2 {[%emt 0:00:08]} Qe5 {[%emt 0:00:22]} 53. Nf1 {[%emt 0:00:28]} Qe4+ {[%emt 0:00:21]} 54. Kg1 {[%emt 0:00:15]} Qe5 {[%emt 0:01:11]} 55. Ng3 {[%emt 0:00:07]} Qa1+ {[%emt 0:00:28]} 56. Kg2 {[%emt 0:00:04]} f6 {[%emt 0:00:55]} 57. Qe2 {[%emt 0:01:32]} Kf7 {[%emt 0:00:03]} 58. h4 {[%emt 0:01:41]} gxh4 {[%emt 0:01:32]} 59. Ne4 {[%emt 0:00:02]} Qe5 {[%emt 0:00:15]} 60. Kh3 {[%emt 0:00:18]} h5 {[%emt 0:00:36]} 61. Kxh4 {[%emt 0:02:03]} hxg4 {[%emt 0:00:22]} 62. Qxg4 {[%emt 0:00:02]} Qh2+ {[%emt 0:01:27]} 63. Qh3 {[%emt 0:00:01]} Qf4+ {[%emt 0:00:08]} 64. Qg4 {[%emt 0:00:12]} Qh2+ {[%emt 0:00:13]} 65. Qh3 {[%emt 0:00:01]} Qf4+ {[%emt 0:00:11]} 66. Qg4 {[%emt 0:00:01]} Qh2+ {[%emt 0:02:03]} 67. Qh3 Qxh3+ 68. Kxh3 {[%emt 0:01:00]} Bxf5+ {[%emt 0:01:00]} 0-1

[Event "French-ch U16-U18 2024"]
[Site "Agen"]
[Date "2024.04.17"]
[Round "5.6"]
[White "Vallee, Louis"]
[Black "Trevisiol, Antoine"]
[Result "1/2-1/2"]
[ECO "E04"]
[WhiteElo "2270"]
[BlackElo "2235"]
[Annotator "TA"]
[PlyCount "141"]
[EventDate "2024.04.14"]
[EventType "swiss"]
[EventCountry "FRA"]
[SourceTitle "playchess.com"]
[Source "ChessBase"]
[SourceQuality "1"]
[TimeControl "5400+30"]

{[%evp 21,141,16,30,22,17,-2,5,3,6,-12,-12,-9,-11,-14,0,0,0,-7,4,0,24,25,23,27,27,17,14,16,28,14,11,2,0,0,95,0,0,0,3,0,0,0,0,-73,-73,-80,-80,-75,-74,-93,-88,-88,-80,-80,-27,-30,-20,-47,-8,-8,-8,-67,0,-55,-54,-67,-67,-67,-67,-67,-67,-67,-67,-67,-67,-67,-67,-67,-67,-67,-67,-67,-67,-67,-66,-66,-66,-70,-70,-70,-70,-70,-70,-72,-72,-72,-72,-72,-72,-72,-66,-68,-68,-68,-68,-68,-68,-72,-70,-70,-70,-70,-70,-70,-70,-70,-70,-70,-70,-72,0,0]} 1. c4 {[%emt 0:00:04]} e6 {[%emt 0:00:15]} 2. g3 {[%emt 0:00:17]} d5 {[%emt 0:01:26]} 3. d4 {[%emt 0:00:09]} Nf6 {[%emt 0:02:04]} 4. Nf3 {[%emt 0:00:19]} dxc4 {[%emt 0:01:26]} 5. Bg2 {[%emt 0:00:31]} c5 {[%emt 0:01:02]} 6. O-O {[%emt 0:01:26]} Nc6 {[%emt 0:00:23]} 7. Ne5 {[%emt 0:05:28]} Bd7 {[%emt 0:11:23]} 8. Na3 {[%emt 0:00:55]} cxd4 {[%emt 0:03:21]} 9. Naxc4 {[%emt 0:00:42]} Rc8 {[%emt 0:07:40]} 10. Qb3 {[%emt 0:10:37]} Nxe5 {[%emt 0:06:00]} 11. Nxe5 {[%emt 0:00:17]} Bc6 {[%emt 0:01:21] E04: Open Catalan: 5 Nf3.} 12. Nxc6 {[%emt 0:11:21]} bxc6 {[%emt 0:00:11]} 13. e3 {[%emt 0:14:12]} Qb6 {[%emt 0:14:37]} 14. exd4 {[%emt 0:06:58]} Be7 {[%emt 0:11:31]} 15. Qa4 $146 {[%emt 0:05:58]} ({Predecessor:} 15. Qxb6 axb6 16. Bd2 Nd5 17. Bxd5 cxd5 18. Rfc1 Kd7 19. Kf1 Rxc1+ 20. Rxc1 Ra8 21. a3 {½-½ Schoenau,W (2172)-Magyar,O (2317) Landesliga Nord 0203 2002 (6.4)}) 15... O-O {[%emt 0:01:36]} 16. b3 {[%emt 0:00:30]} Nd5 {[%emt 0:10:41]} 17. Bb2 {[%emt 0:01:27]} Bf6 {[%emt 0:05:36]} 18. Rac1 {[%emt 0:01:38]} Qb5 {[%emt 0:04:45]} 19. Qc4 {[%emt 0:07:29]} Nb4 {[%emt 0:00:59]} 20. a4 {[%emt 0:06:07]} Qxc4 {[%emt 0:02:41]} 21. Rxc4 {[%emt 0:00:14]} Nd5 {[%emt 0:00:57]} 22. Ba3 {[%emt 0:04:59]} Rfd8 {[%emt 0:00:17]} 23. Rfc1 {[%emt 0:04:44]} Rb8 {[%emt 0:00:56]} 24. Rxc6 {[%emt 0:01:52]} Rxb3 {[%emt 0:03:02]} 25. Bc5 {[%emt 0:04:34]} Nc3 {[%emt 0:01:32]} 26. Bf1 {[%emt 0:02:57]} Nxa4 {[%emt 0:01:45]} 27. Bxa7 {[%emt 0:00:07]} g6 {[%emt 0:01:11] [#]} (27... h5 $11 {keeps the balance.}) 28. Rc8 {[%emt 0:04:56]} (28. d5 $1 $16) 28... Kg7 {[%emt 0:02:27]} 29. R8c7 {[%emt 0:02:04]} Nb2 {[%emt 0:02:11]} 30. Ra1 {[%emt 0:01:58]} Bxd4 {[%emt 0:00:51]} 31. Bxd4+ {[%emt 0:00:02]} Rxd4 {[%emt 0:00:11]} 32. Kg2 {[%emt 0:01:05]} (32. Ra6 $1 $11 {remains equal.}) 32... Ra4 $17 {[%emt 0:01:22]} 33. Rb1 {[%emt 0:00:32]} Rab4 {[%emt 0:00:37]} 34. Ra1 {[%emt 0:00:29]} Rb7 {[%emt 0:00:28]} 35. Ra7 {[%emt 0:00:31]} Rxa7 {[%emt 0:00:40]} 36. Rxa7 {[%emt 0:00:06]} Nd1 {[%emt 0:00:12]} 37. Rd7 {[%emt 0:00:51]} Nc3 {[%emt 0:00:49]} (37... Rb1 $17) 38. Rd3 $1 $11 {[%emt 0:00:30]} Kf6 {[%emt 0:00:18]} 39. Re3 {[%emt 0:00:32]} h5 {[%emt 0:00:15]} 40. Bc4 {[%emt 0:00:31]} Ra3 {[%emt 0:00:10]} 41. h4 {[%emt 0:00:17]} (41. Rf3+ $11 Ke7 42. Rd3) 41... Ke7 {[%emt 0:00:31]} ({Better is} 41... Nb1 $1 $15) 42. Kf3 {[%emt 0:00:35]} (42. Rd3 $11) 42... Kd6 $1 $15 {[%emt 0:00:29]} 43. Kg2 {[%emt 0:00:38]} Kc5 {[%emt 0:00:45]} 44. Bxe6 {[%emt 0:00:30]} fxe6 {[%emt 0:00:11]} 45. Rxe6 {[%emt 0:00:00]} Ra2 {[%emt 0:00:41]} 46. Rxg6 {[%emt 0:00:35]} Ne4 {[%emt 0:00:15]} 47. g4 {[%emt 0:00:25]} ({But not} 47. Kf3 $2 Kd4 (47... Nxf2 48. Rg5+ Kd6 49. Rxh5 $11) 48. Kg2 Nxf2 $19 (48... Rxf2+ $2 49. Kh3 $19)) 47... Rxf2+ {[%emt 0:01:07]} 48. Kg1 {[%emt 0:00:12]} Rf4 {[%emt 0:00:21]} 49. gxh5 {[%emt 0:00:18]} Rxh4 {[%emt 0:00:07]} 50. h6 {[%emt 0:00:43]} Kd4 {[%emt 0:00:10]} 51. Kg2 {[%emt 0:00:16]} Ke3 {[%emt 0:02:14]} 52. Ra6 {[%emt 0:01:12]} Rg4+ {[%emt 0:00:00]} 53. Kh3 {[%emt 0:00:33]} Kf4 {[%emt 0:00:00]} 54. Ra4 {[%emt 0:00:31]} Rg6 {[%emt 0:00:00]} 55. h7 {[%emt 0:00:14]} Rh6+ {[%emt 0:00:00]} 56. Kg2 {[%emt 0:00:05]} Rxh7 {[%emt 0:00:00]} (56... Kf5 {is more complex.} 57. Ra5+ Kg4 58. Ra7 Nf6) 57. Ra3 {[%emt 0:00:37]} Rb7 {[%emt 0:00:11]} 58. Rf3+ {[%emt 0:00:53]} Kg4 {[%emt 0:00:07]} 59. Rf8 {[%emt 0:00:18]} Rb2+ {[%emt 0:00:06]} 60. Kf1 {[%emt 0:00:06]} Nc5 {[%emt 0:01:23]} 61. Ke1 {[%emt 0:00:27]} Nd3+ {[%emt 0:00:07]} 62. Kd1 {[%emt 0:00:06]} Nf4 {[%emt 0:00:08]} 63. Re8 {[%emt 0:00:33]} Kf3 {[%emt 0:00:16]} 64. Kc1 {[%emt 0:00:39]} Nd3+ {[%emt 0:00:06]} 65. Kd1 {[%emt 0:00:04]} Nc5 {[%emt 0:00:20]} 66. Kc1 {[%emt 0:00:18]} (66. Rf8+ Ke3 67. Rd8 (67. Re8+ Ne4 $15) 67... Rg2) 66... Rh2 {[%emt 0:00:07]} 67. Rc8 {[%emt 0:00:27]} Nb3+ {[%emt 0:00:28]} 68. Kb1 {[%emt 0:00:16]} Nd4 {[%emt 0:00:18]} 69. Re8 {[%emt 0:00:16]} Nb5 {[%emt 0:00:28]} 70. Kc1 {[%emt 0:01:04]} Nc3 {[%emt 0:00:11]} (70... Na3 $17) 71. Re3+ $1 {[%emt 0:00:22]} 1/2-1/2

[Event "French-ch U16-U18 2024"]
[Site "Agen"]
[Date "2024.04.17"]
[Round "5.7"]
[White "Kuhn, Clement"]
[Black "Kufferath, Camille"]
[Result "1-0"]
[ECO "E02"]
[WhiteElo "2349"]
[BlackElo "2056"]
[Annotator "TA"]
[PlyCount "53"]
[EventDate "2024.04.14"]
[EventType "swiss"]
[EventCountry "FRA"]
[SourceTitle "playchess.com"]
[Source "ChessBase"]
[SourceQuality "1"]
[TimeControl "5400+30"]

{[%evp 18,53,31,32,40,35,26,29,106,92,117,95,133,134,129,132,124,92,97,81,95,91,94,84,94,72,120,123,187,178,326,324,318,334,330,337,713,698]} 1. d4 {[%emt 0:00:09]} d5 {[%emt 0:00:50]} 2. Nf3 {[%emt 0:01:01]} Nf6 {[%emt 0:01:06]} 3. g3 {[%emt 0:00:05]} e6 {[%emt 0:08:20]} 4. c4 {[%emt 0:00:10]} Be7 {[%emt 0:01:33]} 5. Bg2 {[%emt 0:00:01]} O-O {[%emt 0:00:54]} 6. O-O {[%emt 0:00:03]} dxc4 {[%emt 0:01:55]} 7. Qc2 {[%emt 0:00:17]} Bd7 {[%emt 0:07:36]} 8. Qxc4 {[%emt 0:06:38]} Bc6 {[%emt 0:05:01]} 9. Nc3 {[%emt 0:01:24]} Nbd7 {[%emt 1:07:45]} 10. Qd3 {[%emt 0:05:27]} a6 {[%emt 0:00:00]} 11. Rd1 {[%emt 0:12:43]} b5 {[%emt 0:00:00]} 12. a3 {[%emt 0:04:04]} Bd6 {[%emt 0:00:00]} (12... Bb7 $11) 13. e4 $16 {[%emt 0:03:01] [#] Threatens to win with e5.} e5 {[%emt 0:00:00]} 14. Qe2 {[%emt 0:05:23] Strongly threatening dxe5.} Re8 {[%emt 0:00:00]} 15. dxe5 {[%emt 0:03:01]} Nxe5 {[%emt 0:00:00]} 16. Nxe5 {[%emt 0:00:05]} Rxe5 {[%emt 0:00:00]} 17. Bf4 {[%emt 0:18:52]} Re8 {[%emt 0:00:00]} 18. Rd4 {[%emt 0:02:39]} Qe7 {[%emt 0:00:00]} 19. Bxd6 {[%emt 0:00:01]} cxd6 {[%emt 0:00:00]} 20. Qd2 {[%emt 0:00:44] White is more active.} Qb7 {[%emt 0:00:00][%cal Rf6e4]} 21. Re1 {[%emt 0:00:39]} Ng4 {[%emt 0:00:00]} (21... a5 $142) 22. Rxd6 {[%emt 0:04:27]} a5 {[%emt 0:00:00]} (22... Ne5 $16 {is a better defense.}) 23. Qd4 $18 {[%emt 0:03:31]} a4 {[%emt 0:00:00] [#]} (23... b4 $142) 24. Rxc6 $1 {[%emt 0:05:25][%mdl 512]} Qxc6 {[%emt 0:03:25]} 25. e5 {[%emt 0:00:01]} Qe6 {[%emt 0:00:01]} 26. Bxa8 {[%emt 0:00:45]} ({Inferior is} 26. Nxb5 Rad8 27. Qxa4 Nxe5 $17) 26... Nxe5 $2 {[%emt 0:00:04]} (26... Rxa8 27. Nxb5 Rb8) 27. Kh1 {[%emt 0:03:45] Weighted Error Value: White=0.05 (flawless) /Black=0.34.  Mistake:       	---       	Black=5      Inaccurate:     	---       	Black=1      OK:         	White=8     	Black=4      Best:        	White=2     	---} 1-0